bitfinex/quotes_SOLUSD_20240825
["timestamp","ask_amount","ask_price","bid_price","bid_amount"]
[1724604636890,35.34615717,159.27,159.18,1.5724097]
[1724604637100,35.34615717,159.27,159.19,1.5724097]
[1724604637280,35.34615717,159.27,159.2,1.5724097]
[1724604637474,35.34615717,159.27,159.17,45.0]
[1724604637671,35.34615717,159.27,159.18,1.57241032]
[1724604637875,35.34615717,159.27,159.19,1.57241032]
[1724604638100,35.34615717,159.27,159.17,45.0]
[1724604638285,35.34615717,159.27,159.18,1.5724382]
[1724604638483,29.06755717,159.27,159.19,1.5724382]
[1724604638803,29.06755717,159.27,159.2,1.57238502]
[1724604638982,29.06755717,159.27,159.17,45.0]
[1724604639180,29.06755717,159.27,159.18,1.57239406]
[1724604639393,29.06755717,159.27,159.19,1.57239406]
[1724604639714,35.34615717,159.27,159.16,39.31434622]
[1724604639995,35.34615717,159.27,159.17,2.96848535]
[1724604640299,35.34615717,159.27,159.18,1.57242093]
[1724604640499,35.34615717,159.27,159.19,1.57242093]
[1724604640683,35.34615717,159.27,159.17,1.39606442]
[1724604640884,35.34615717,159.27,159.18,1.57243859]
[1724604641399,6.2791,159.26,159.18,1.57243859]
[1724604641594,7.84944255,159.26,159.19,1.57243859]
[1724604641798,6.28,159.24,159.15,4.58092718]
[1724604641983,1.57054981,159.23,159.16,1.57245729]
[1724604642312,1.57054981,159.23,159.17,1.57245729]
[1724604642512,1.57054981,159.23,159.14,1.39602402]
[1724604642690,1.57054981,159.23,159.15,1.57260464]
[1724604642892,1.57054981,159.23,159.16,1.57260464]
[1724604643228,1.57054981,159.23,159.17,1.57260464]
[1724604643501,24.29014622,159.21,159.15,1.57275397]
[1724604643711,24.29014622,159.21,159.1,1.39602402]
[1724604643712,30.57144622,159.21,159.1,1.39602402]
[1724604643902,30.57144622,159.21,159.11,2.96884803]
[1724604644088,6.2813,159.21,159.12,1.39602402]
[1724604644279,6.2813,159.21,159.13,1.57279027]
[1724604644602,6.2813,159.21,159.14,1.57279027]
[1724604644781,6.2813,159.21,159.15,1.57279027]
[1724604644986,6.2813,159.21,159.13,1.39686647]
[1724604645207,6.2813,159.21,159.14,1.57278945]
[1724604645406,6.2813,159.21,159.15,1.57278945]
[1724604645705,6.2813,159.21,159.12,1.39686647]
[1724604645916,6.2813,159.21,159.13,1.57285919]
[1724604646129,7.85224687,159.2,159.14,1.57285919]
[1724604646414,7.85224687,159.2,159.12,1.39686647]
[1724604646415,24.29014622,159.19,159.13,1.57309277]
[1724604646588,1.57116105,159.18,159.08,1.39775938]
[1724604646791,77.4231793,159.19,159.09,2.9709217]
[1724604647024,77.4231793,159.19,159.1,1.57316232]
[1724604647319,77.4231793,159.19,159.07,15.0242]
[1724604647498,6.2825,159.17,159.11,1.57311798]
[1724604647697,6.2825,159.17,159.08,22.97077093]
[1724604647910,6.2825,159.17,159.09,2.97077093]
[1724604648224,6.2825,159.17,159.1,1.57311798]
[1724604648415,6.2825,159.17,159.11,1.57311798]
[1724604648622,6.2825,159.17,159.12,1.57311798]
[1724604648795,6.2825,159.17,159.09,1.39765295]
[1724604649119,6.2825,159.17,159.1,1.5731336]
[1724604649294,6.2825,159.17,159.11,1.5731336]
[1724604649495,6.2829,159.16,159.12,1.5731336]
[1724604649800,77.42312573,159.19,159.1,1.57333228]
[1724604649801,6.2839,159.14,159.1,1.57333228]
[1724604650112,6.2839,159.14,159.05,1.39825795]
[1724604650320,6.2839,159.14,159.06,2.97162904]
[1724604650517,6.2839,159.14,159.07,1.57337109]
[1724604650720,6.2839,159.14,159.08,1.57337109]
[1724604650892,6.2839,159.14,159.04,13.44945312]
[1724604650893,6.2839,159.14,159.09,1.57337109]
[1724604651093,6.2839,159.14,159.06,1.39825795]
[1724604651719,6.2839,159.14,159.05,1.39825795]
[1724604651922,6.2842,159.13,159.06,1.39825795]
[1724604652116,6.2842,159.13,159.05,1.39825795]
[1724604652735,46.30274622,159.15,159.05,46.39825795]
[1724604653027,22.0126,159.15,159.06,1.39825795]
[1724604653216,22.0126,159.15,159.06,46.39825795]
[1724604653419,22.0126,159.15,159.07,1.39825795]
[1724604653814,22.0126,159.15,159.07,1.3981397]
[1724604656228,75.85198887,159.19,159.08,1.3981397]
[1724604656229,6.2824,159.18,159.08,1.3981397]
[1724604656405,6.2824,159.18,159.08,49.58589753]
[1724604656599,6.2824,159.18,159.09,1.3981397]
[1724604656799,6.2824,159.18,159.08,45.0]
[1724604657022,6.55968523,159.18,159.09,1.39771632]
[1724604658628,6.55968523,159.18,159.09,4.58499566]
[1724604659511,6.55968523,159.18,159.09,4.58498591]
[1724604659712,6.55968523,159.18,159.09,1.39771632]
[1724604660404,6.55968523,159.18,159.09,4.5849769]
[1724604660729,6.55968523,159.18,159.09,4.5849149]
[1724604660933,6.55968523,159.18,159.09,1.39771632]
[1724604661133,12.84188523,159.18,159.09,1.39771632]
[1724604662226,51.2828,159.17,159.09,1.39771632]
[1724604662407,12.84188523,159.18,159.08,21.39771632]
[1724604662613,12.84188523,159.18,159.08,20.0]
[1724604666928,12.84188523,159.18,159.09,15.6859]
[1724604667716,6.55968523,159.18,159.09,39.97604622]
[1724604668124,6.2809,159.22,159.11,24.29014622]
[1724604668330,6.55808148,159.2,159.11,24.29014622]
[1724604668543,6.55808148,159.2,159.1,45.0]
[1724604669545,6.2813,159.21,159.1,45.0]
[1724604670064,6.2813,159.21,159.11,6.6558658]
[1724604670944,6.2813,159.21,159.12,3.97411003]
[1724604671540,6.2813,159.21,159.13,3.97411003]
[1724604671749,6.2813,159.21,159.1,45.0]
[1724604671939,6.2813,159.21,159.12,3.97401431]
[1724604672271,69.29014622,159.2,159.09,15.6859]
[1724604672547,1.57102957,159.19,159.1,3.97401459]
[1724604672747,1.57102957,159.19,159.11,3.97401459]
[1724604672951,1.57102957,159.19,159.1,3.97401459]
[1724604673154,1.57102957,159.19,159.09,15.6859]
[1724604673347,69.29014622,159.2,159.09,15.6859]
[1724604673539,6.2824,159.18,159.09,15.6859]
[1724604674238,51.2826,159.17,159.09,15.6859]
[1724604674439,6.2826,159.17,159.09,15.6859]
[1724604674955,6.2822,159.18,159.09,15.6859]
[1724604675127,6.2818,159.19,159.09,46.63211339]
[1724604675330,6.2818,159.19,159.1,6.65606717]
[1724604678042,6.2814,159.2,159.1,6.65606717]
[1724604678243,6.2814,159.2,159.1,6.65641408]
[1724604678758,6.2814,159.2,159.09,39.97604622]
[1724604678759,6.55980119,159.22,159.13,24.29014622]
[1724604679144,6.2793,159.26,159.15,39.97604622]
[1724604679343,6.55876439,159.25,159.16,6.65582382]
[1724604680070,15.6938,159.3,159.17,24.29014622]
[1724604680071,24.29014622,159.3,159.17,24.29014622]
[1724604680356,6.2779,159.29,159.17,89.29014622]
[1724604680560,12.82239094,159.29,159.17,89.29014622]
[1724604681837,6.2782,159.28,159.17,89.29014622]
[1724604682163,6.2782,159.28,159.18,6.65353793]
[1724604684567,6.54449094,159.29,159.21,24.29014622]
[1724604684874,22.8013,159.32,159.21,24.29014622]
[1724604685045,29.36102774,159.32,159.21,24.29014622]
[1724604685366,12.83642774,159.32,159.22,45.0]
[1724604689779,6.277,159.31,159.22,45.0]
[1724604690949,6.2775,159.3,159.21,24.29014622]
[1724604691353,6.2775,159.3,159.2,22.594]
[1724604691865,1.56979881,159.3,159.2,22.594]
[1724604692070,25.8603025,159.29,159.2,16.043]
[1724604692371,45.0,159.28,159.2,16.043]
[1724604692576,7.84917349,159.27,159.2,16.043]
[1724604692774,6.279,159.27,159.2,16.043]
[1724604693154,1.57017331,159.26,159.2,16.043]
[1724604693758,6.279,159.27,159.2,16.043]
[1724604694063,6.2783,159.28,159.2,16.043]
[1724604695556,12.83425868,159.27,159.2,16.043]
[1724604696784,7.8491247,159.26,159.2,16.043]
[1724604696951,6.2791,159.26,159.2,16.043]
[1724604698557,6.2807,159.22,159.16,22.1531]
[1724604698757,6.2802,159.23,159.16,22.1531]
[1724604699277,45.0,159.24,159.16,22.1531]
[1724604699278,6.2798,159.24,159.16,22.1531]
[1724604704287,32.41618693,159.27,159.16,22.1531]
[1724604704288,6.2794,159.26,159.16,22.1531]
[1724604704994,6.2794,159.25,159.16,22.1531]
[1724604705485,6.2798,159.24,159.16,22.1531]
[1724604705791,1.57041931,159.23,159.16,22.1531]
[1724604707176,12.83762156,159.24,159.16,22.1531]
[1724604711291,12.83762156,159.24,159.17,1.57234272]
[1724604711490,12.83762156,159.24,159.18,1.57234272]
[1724604711790,12.83762156,159.24,159.19,1.57234231]
[1724604711978,12.83762156,159.24,159.16,22.1531]
[1724604712176,12.83762156,159.24,159.17,1.5723421]
[1724604712380,12.83762156,159.24,159.18,1.5723421]
[1724604712580,12.83762156,159.24,159.16,22.1531]
[1724604712581,12.83762156,159.24,159.19,1.5723421]
[1724604712894,6.55782156,159.24,159.2,1.57233251]
[1724604713196,6.55782156,159.24,159.21,1.57222542]
[1724604713402,6.55782156,159.24,159.16,22.1531]
[1724604713573,6.55782156,159.24,159.17,1.57222614]
[1724604713776,24.29014622,159.29,159.18,1.57222614]
[1724604713987,6.56593079,159.27,159.2,15.4209]
[1724604714190,6.56593079,159.27,159.21,1.57222614]
[1724604714390,24.29014622,159.31,159.22,1.57222614]
[1724604714590,6.2782,159.28,159.2,15.4209]
[1724604714790,6.2779,159.29,159.21,1.57213769]
[1724604714986,6.2779,159.29,159.22,1.57213769]
[1724604715277,6.2779,159.29,159.2,15.4209]
[1724604715602,6.2779,159.29,159.21,1.57212334]
[1724604715897,6.2779,159.29,159.22,1.57212334]
[1724604716101,6.2779,159.29,159.2,15.4209]
[1724604716305,6.2779,159.29,159.21,1.57212292]
[1724604716508,6.2779,159.29,159.22,1.57212292]
[1724604716679,6.2779,159.29,159.2,15.4209]
[1724604716879,6.2779,159.29,159.21,1.57213057]
[1724604717180,6.2782,159.28,159.22,1.57213057]
[1724604717382,6.2782,159.28,159.23,1.57213057]
[1724604717596,6.2782,159.28,159.2,15.4209]
[1724604717790,6.2782,159.28,159.21,1.57212216]
[1724604717992,6.2782,159.28,159.22,1.57212216]
[1724604718302,6.2782,159.28,159.23,1.57212216]
[1724604718511,6.2782,159.28,159.2,15.4209]
[1724604718682,6.2782,159.28,159.21,1.57213078]
[1724604718883,6.2782,159.28,159.22,1.57213078]
[1724604719104,6.2782,159.28,159.23,1.57213078]
[1724604719305,6.2779,159.29,159.2,15.4209]
[1724604719602,6.2779,159.29,159.22,6.3874]
[1724604719802,6.2779,159.29,159.23,1.5719065]
[1724604719989,6.2779,159.29,159.24,1.5719065]
[1724604720191,6.56065374,159.3,159.25,1.5719065]
[1724604720395,12.83805374,159.3,159.26,1.57184493]
[1724604720608,12.83805374,159.3,159.22,6.3874]
[1724604720786,12.83805374,159.3,159.23,1.57181987]
[1724604720987,12.83805374,159.3,159.24,1.57181987]
[1724604721198,12.83805374,159.3,159.22,6.3874]
[1724604722789,12.83805374,159.3,159.23,1.39451908]
[1724604722989,6.56065374,159.3,159.24,1.39451908]
[1724604723207,6.56065374,159.3,159.25,16.81541908]
[1724604723415,6.56065374,159.3,159.25,15.4209]
[1724604723802,15.6868,159.37,159.25,15.4209]
[1724604724004,9.69635664,159.35,159.26,1.39412105]
[1724604724190,6.56363196,159.3,159.27,1.39399005]
[1724604724391,9.69635664,159.35,159.25,25.11725664]
[1724604724606,6.56353916,159.3,159.26,1.39395979]
[1724604724835,9.69635664,159.35,159.27,1.39395979]
[1724604725029,15.6868,159.37,159.28,1.39395979]
[1724604725224,6.55427382,159.3,159.25,25.11725664]
[1724604725395,18.43830423,159.37,159.25,25.11725664]
[1724604725396,9.69635664,159.36,159.26,1.39384657]
[1724604725714,18.43830423,159.37,159.25,25.11725664]
[1724604725715,6.55308689,159.3,159.27,1.39384657]
[1724604725915,6.2763,159.33,159.25,15.4209]
[1724604726123,6.55825074,159.3,159.26,1.39386166]
[1724604726294,6.2763,159.33,159.27,1.39386166]
[1724604726503,6.2763,159.33,159.25,15.4209]
[1724604726700,6.5549222,159.3,159.26,1.39383416]
[1724604726890,24.24499257,159.35,159.27,1.39383416]
[1724604727091,22.0274,159.38,159.25,15.4209]
[1724604727092,6.5546062,159.34,159.28,1.39383416]
[1724604727413,6.5546062,159.34,159.27,1.39368814]
[1724604727618,6.5546062,159.34,159.28,1.39368814]
[1724604727820,6.5546062,159.34,159.25,15.4209]
[1724604728114,6.5546062,159.34,159.26,1.39358954]
[1724604728327,6.5546062,159.34,159.27,1.39358954]
[1724604728624,12.8305062,159.34,159.28,1.39358954]
[1724604728827,12.8305062,159.34,159.26,1.39358954]
[1724604729027,12.8305062,159.34,159.27,1.39358954]
[1724604729228,12.8305062,159.34,159.28,1.39358954]
[1724604729429,12.8305062,159.34,159.26,1.39358954]
[1724604729622,12.8305062,159.34,159.25,15.4209]
[1724604729819,12.8305062,159.34,159.26,6.4105]
[1724604731630,6.5546062,159.34,159.26,6.4105]
[1724604731841,24.24499257,159.38,159.27,45.0]
[1724604732014,6.55618518,159.37,159.27,45.0]
[1724604732435,6.2751,159.36,159.27,45.0]
[1724604735337,6.2759,159.34,159.26,6.4105]
[1724604735541,25.81435226,159.34,159.26,10.38126853]
[1724604735842,24.24499257,159.34,159.26,6.4105]
[1724604736139,6.2771,159.31,159.26,6.4105]
[1724604736523,24.24499257,159.32,159.25,15.4209]
[1724604736729,6.2778,159.3,159.25,15.4209]
[1724604740831,6.2787,159.27,159.22,6.4105]
[1724604741727,24.24499257,159.28,159.21,15.8526]
[1724604741941,24.24499257,159.26,159.18,6.4105]
[1724604742453,24.24499257,159.24,159.17,15.8526]
[1724604742823,45.0,159.23,159.17,15.8526]
[1724604743640,6.2806,159.22,159.17,15.8526]
[1724604745434,6.2801,159.24,159.17,15.8526]
[1724604745635,6.56282915,159.25,159.17,15.8526]
[1724604745636,12.84222915,159.25,159.17,15.8526]
[1724604746845,6.56282915,159.25,159.17,15.8526]
[1724604747034,6.56282915,159.25,159.18,48.97255309]
[1724604747227,6.56282915,159.25,159.18,45.0]
[1724604747436,24.24499257,159.3,159.18,45.0]
[1724604747746,6.56576437,159.28,159.18,45.0]
[1724604748321,12.84426437,159.28,159.19,6.1569]
[1724604750049,6.2786,159.27,159.19,6.1569]
[1724604750428,6.2786,159.27,159.19,10.12924577]
[1724604750622,6.2786,159.27,159.19,6.1569]
[1724604751436,6.2786,159.27,159.19,10.12924549]
[1724604752550,6.2786,159.27,159.19,10.12924493]
[1724604753927,22.54935525,159.28,159.19,10.12924493]
[1724604755427,22.54935525,159.28,159.19,6.1569]
[1724604755644,22.54935525,159.28,159.19,10.12916934]
[1724604755855,12.84396437,159.28,159.19,10.12916934]
[1724604757553,12.84396437,159.28,159.2,15.106]
[1724604757852,6.2786,159.27,159.2,15.106]
[1724604758053,15.98509088,159.25,159.2,15.106]
[1724604761826,12.84544893,159.26,159.2,15.106]
[1724604762033,22.55083981,159.26,159.2,15.106]
[1724604767067,6.56644893,159.26,159.2,15.106]
[1724604767435,6.56644893,159.26,159.2,24.81139088]
[1724604770557,12.84544893,159.26,159.2,15.106]
[1724604773059,6.56644893,159.26,159.2,15.106]
[1724604775138,12.84544893,159.26,159.2,15.106]
[1724604775340,6.56644893,159.26,159.2,15.106]
[1724604777760,6.56644893,159.26,159.21,3.97231023]
[1724604779368,6.56644893,159.26,159.22,3.97231023]
[1724604779675,6.56644893,159.26,159.21,3.97231023]
[1724604779876,6.56644893,159.26,159.22,3.97231023]
[1724604780169,6.56644893,159.26,159.21,3.97231023]
[1724604780356,6.56644893,159.26,159.22,3.97231023]
[1724604780559,6.56644893,159.26,159.2,15.106]
[1724604780774,6.56644893,159.26,159.21,3.97226319]
[1724604780971,6.56644893,159.26,159.22,3.97226319]
[1724604781188,6.56644893,159.26,159.23,1.57207855]
[1724604781353,6.56644893,159.26,159.24,1.57207855]
[1724604781553,6.56644893,159.26,159.25,1.57207855]
[1724604782669,6.56644893,159.26,159.25,1.57207773]
[1724604787987,6.2787,159.27,159.25,1.57207773]
[1724604788198,6.2787,159.27,159.26,1.57207773]
[1724604790099,6.2787,159.27,159.26,1.57207179]
[1724604790100,15.98409088,159.27,159.26,1.57207179]
[1724604790391,6.2802,159.24,159.21,5.36767982]
[1724604790702,15.98559088,159.24,159.21,3.97241512]
[1724604790867,15.98559088,159.24,159.2,15.106]
[1724604801010,15.98559088,159.24,159.18,8.54085949]
[1724604801302,15.98559088,159.24,159.19,8.54085949]
[1724604801505,6.55520338,159.23,159.2,8.54085949]
[1724604801801,6.55520338,159.23,159.16,15.3795]
[1724604802016,6.55520338,159.23,159.17,8.54066354]
[1724604802175,16.34989088,159.28,159.18,53.54066354]
[1724604802378,6.55412077,159.27,159.19,8.54066354]
[1724604802594,6.55412077,159.27,159.2,8.54066354]
[1724604802904,6.55412077,159.27,159.21,8.54066354]
[1724604803108,12.83282077,159.27,159.22,8.54066354]
[1724604803290,12.83282077,159.27,159.18,45.0]
[1724604803493,12.83282077,159.27,159.19,8.53967781]
[1724604803795,12.83282077,159.27,159.2,8.53967781]
[1724604804102,12.83282077,159.27,159.21,8.53972914]
[1724604804299,6.55412077,159.27,159.22,8.53972914]
[1724604804474,6.55412077,159.27,159.18,45.0]
[1724604804800,9.70539088,159.26,159.19,8.53968133]
[1724604804981,9.70539088,159.26,159.2,8.53968133]
[1724604805183,9.70539088,159.26,159.21,8.53968133]
[1724604805383,9.70539088,159.26,159.22,8.53968133]
[1724604805582,9.70539088,159.26,159.18,45.0]
[1724604805782,9.70539088,159.26,159.19,8.53985297]
[1724604805995,9.70539088,159.26,159.2,8.53985297]
[1724604806302,15.98519088,159.24,159.16,15.3795]
[1724604809291,6.2798,159.24,159.16,15.3795]
[1724604810584,22.6613,159.26,159.16,15.3795]
[1724604810585,28.9407,159.26,159.16,15.3795]
[1724604810789,38.64609088,159.26,159.17,45.0]
[1724604811594,6.2794,159.25,159.16,15.3795]
[1724604812904,12.84055761,159.25,159.16,15.3795]
[1724604814304,9.70539088,159.24,159.16,15.3795]
[1724604819097,9.70539088,159.24,159.16,23.24087592]
[1724604820017,9.70539088,159.24,159.16,15.3795]
[1724604820218,9.70539088,159.24,159.16,23.24087541]
[1724604823391,9.70539088,159.24,159.16,15.3795]
[1724604823598,9.70539088,159.24,159.16,23.24104792]
[1724604824917,12.84055761,159.25,159.16,23.24104792]
[1724604825126,6.56115761,159.25,159.17,62.5669388]
[1724604826518,6.56115761,159.25,159.17,54.70539088]
[1724604826725,6.56115761,159.25,159.17,62.56647911]
[1724604826903,6.56115761,159.25,159.17,54.70539088]
[1724604827103,6.56115761,159.25,159.17,62.56647475]
[1724604829723,6.56115761,159.25,159.17,45.0]
[1724604829926,6.56115761,159.25,159.18,9.70539088]
[1724604830430,6.56115761,159.25,159.2,9.70539088]
[1724604830641,22.6314,159.3,159.22,9.70539088]
[1724604830824,22.6314,159.3,159.23,7.86113135]
[1724604831201,22.6314,159.3,159.22,17.56652223]
[1724604831405,22.6314,159.3,159.23,52.86113135]
[1724604832736,22.6314,159.3,159.24,6.65096922]
[1724604832942,22.1314,159.3,159.23,46.51210057]
[1724604833102,22.1314,159.3,159.24,6.65104739]
[1724604833298,22.1314,159.3,159.22,9.70539088]
[1724604833299,22.1314,159.3,159.23,6.65104739]
[1724604833529,22.1314,159.3,159.24,6.65104739]
[1724604833737,22.1314,159.3,159.23,6.65104739]
[1724604833945,22.1314,159.3,159.22,9.70539088]
[1724604834418,22.1314,159.3,159.22,16.35643827]
[1724604834625,22.1314,159.3,159.22,9.70539088]
[1724604842443,22.1314,159.3,159.24,9.70539088]
[1724604844360,22.1314,159.3,159.17,8.8120351]
[1724604844540,22.1314,159.3,159.21,9.70539088]
[1724604844853,22.1314,159.3,159.22,20.0]
[1724604845362,9.70539088,159.29,159.17,8.42297588]
[1724604845530,9.70539088,159.29,159.19,9.70539088]
[1724604845733,9.70539088,159.29,159.2,20.0]
[1724604846534,15.98329088,159.29,159.2,20.0]
[1724604848058,6.2785,159.28,159.2,20.0]
[1724604848353,6.2785,159.28,159.19,20.0]
[1724604850040,9.70539088,159.25,159.14,5.93298133]
[1724604850242,9.70539088,159.25,159.14,9.70539088]
[1724604850634,9.70539088,159.25,159.15,9.25645973]
[1724604850829,9.70539088,159.25,159.16,2.96765414]
[1724604851033,9.70539088,159.25,159.17,2.96765414]
[1724604851269,9.70539088,159.25,159.18,2.96765414]
[1724604851464,15.98479088,159.25,159.19,2.96765414]
[1724604851760,22.53308933,159.25,159.2,1.57220127]
[1724604852062,22.53308933,159.25,159.21,1.57220127]
[1724604852253,6.54829845,159.25,159.18,1.39545287]
[1724604852552,6.54829845,159.25,159.19,2.96769237]
[1724604852756,6.54829845,159.25,159.2,1.39549229]
[1724604852960,6.54829845,159.25,159.18,1.39549229]
[1724604853161,6.54829845,159.25,159.19,1.5722177]
[1724604853463,6.54829845,159.25,159.2,1.5722177]
[1724604853654,6.54829845,159.25,159.21,1.5722177]
[1724604853857,6.54829845,159.25,159.22,1.5722177]
[1724604854048,6.54829845,159.25,159.17,45.0]
[1724604854248,6.54829845,159.25,159.18,1.57221718]
[1724604854462,6.54829845,159.25,159.19,1.57221718]
[1724604854662,6.54829845,159.25,159.2,1.57221718]
[1724604854850,6.54829845,159.25,159.21,1.57221718]
[1724604855045,6.54829845,159.25,159.22,1.57220876]
[1724604855247,6.54829845,159.25,159.17,45.0]
[1724604857071,9.70539088,159.21,159.14,6.28883425]
[1724604857373,9.70539088,159.21,159.12,6.28883425]
[1724604857738,15.98649088,159.21,159.12,6.28883425]
[1724604857942,15.98649088,159.21,159.11,6.28883425]
[1724604858170,15.98649088,159.21,159.11,6.28998643]
[1724604858760,15.98649088,159.21,159.12,20.0]
[1724604860875,6.2811,159.21,159.12,20.0]
[1724604861074,9.70539088,159.2,159.12,20.0]
[1724604861740,9.70539088,159.2,159.11,6.29002094]
[1724604861951,9.70539088,159.2,159.12,20.0]
[1724604862166,9.70539088,159.18,159.11,6.29002094]
[1724604862375,1.57086362,159.17,159.08,6.29002094]
[1724604862551,15.98769088,159.18,159.08,6.29002094]
[1724604862751,9.70539088,159.18,159.09,6.29002094]
[1724604863459,9.70539088,159.18,159.08,6.29002094]
[1724604863650,9.70539088,159.18,159.09,65.0]
[1724604864752,37.84029088,159.19,159.09,74.70539088]
[1724604868451,6.2822,159.18,159.09,74.70539088]
[1724604868654,9.70539088,159.17,159.09,20.0]
[1724604868954,15.98799088,159.17,159.06,6.29089703]
[1724604869153,15.98799088,159.17,159.07,9.70539088]
[1724604870275,15.98799088,159.17,159.08,65.0]
[1724604870464,6.2826,159.17,159.08,65.0]
[1724604870667,15.98799088,159.17,159.08,65.0]
[1724604876284,21.8819,159.16,159.08,65.0]
[1724604876595,9.70539088,159.15,159.04,0.8180386]
[1724604876895,9.70539088,159.15,159.04,75.52342948]
[1724604876896,1.57112905,159.14,159.04,75.52342948]
[1724604877071,1.57112905,159.14,159.04,30.52342948]
[1724604877399,9.70539088,159.15,159.04,30.52342948]
[1724604878189,1.57119847,159.14,159.04,30.52342948]
[1724604878704,1.57119847,159.14,159.05,45.0]
[1724604878901,1.57119847,159.14,159.06,20.0]
[1724604879900,9.70539088,159.13,159.06,20.0]
[1724604880283,9.70539088,159.13,159.05,45.0]
[1724604880484,9.70539088,159.13,159.04,10.52342948]
[1724604880688,9.70539088,159.13,159.05,20.0]
[1724604882194,15.6744,159.11,159.05,20.0]
[1724604885217,15.6744,159.11,159.04,0.8180386]
[1724604885511,6.2854,159.1,159.04,0.8180386]
[1724604885702,25.37979088,159.11,159.04,0.8180386]
[1724604887189,1.57158749,159.1,159.04,0.8180386]
[1724604887809,25.37979088,159.11,159.04,0.8180386]
[1724604889708,15.6744,159.11,159.04,0.8180386]
[1724604897710,25.37979088,159.11,159.04,0.8180386]
[1724604899208,19.04895143,159.12,159.04,0.8180386]
[1724604899209,9.70539088,159.07,159.04,0.8180386]
[1724604899397,1.57185326,159.09,159.04,0.8180386]
[1724604899725,9.70539088,159.08,159.04,0.8180386]
[1724604901721,28.0243,159.1,159.04,0.8180386]
[1724604901722,31.44429088,159.1,159.04,0.8180386]
[1724604902551,37.72969088,159.1,159.04,0.8180386]
[1724604903313,21.7389,159.1,159.04,0.8180386]
[1724604909045,9.70539088,159.09,159.04,0.8180386]
[1724604913064,1.57180998,159.08,159.04,0.8180386]
[1724604913361,9.70539088,159.09,159.04,0.8180386]
[1724604914137,21.7389,159.1,159.04,0.8180386]
[1724604915262,9.70539088,159.09,159.04,0.8180386]
[1724604915464,11.27720194,159.09,159.04,0.8180386]
[1724604917855,31.89769088,159.05,159.04,0.8180386]
[1724604918565,38.18499088,159.05,159.04,0.8180386]
[1724604918852,38.18499088,159.05,159.0,0.1]
[1724604919030,1.5722397,159.04,159.0,0.1]
[1724604919229,9.70539088,159.03,159.0,0.1]
[1724604919957,16.23912565,159.03,159.0,0.1]
[1724604920450,6.53373477,159.03,159.0,0.1]
[1724604920845,28.4796,159.05,159.0,0.1]
[1724604922138,22.1923,159.05,159.0,0.1]
[1724604925857,23.76449501,159.05,159.0,0.1]
[1724604926047,9.70539088,159.04,159.0,0.1]
[1724604926563,9.70539088,159.02,159.0,0.1]
[1724604927665,7.86161305,159.01,159.0,0.1]
[1724604927865,29.83311253,159.01,159.0,0.1]
[1724604928368,68.54421253,159.01,158.88,10.52342948]
[1724604928537,9.70539088,158.98,158.88,10.52342948]
[1724604928735,28.2608,159.01,158.9,9.70539088]
[1724604929038,9.70539088,159.0,158.9,9.70539088]
[1724604930371,9.70539088,159.0,158.91,45.0]
[1724604930551,9.70539088,159.0,158.9,9.70539088]
[1724604933642,9.70539088,159.0,158.91,45.0]
[1724604934240,9.70539088,159.0,158.9,9.70539088]
[1724604935869,6.53460637,159.01,158.92,9.70539088]
[1724604936051,6.53460637,159.01,159.0,9.70539088]
[1724604936241,15.6507,159.1,159.0,93.39311356]
[1724604936442,22.1964206,159.1,159.03,9.70539088]
[1724604937738,22.1964206,159.1,158.99,16.4919]
[1724604938044,22.1964206,159.1,159.01,9.70539088]
[1724604942378,22.1964206,159.1,159.03,9.70539088]
[1724604943865,9.70539088,159.08,158.95,16.0828]
[1724604944174,45.0,159.07,158.98,9.70539088]
[1724604945348,51.2865,159.07,158.98,9.70539088]
[1724604946863,6.3177,159.05,158.93,8.90735876]
[1724604947069,16.0568,159.04,158.96,9.70539088]
[1724604951361,25.76219088,159.04,158.93,8.90735876]
[1724604951569,9.70539088,159.02,158.9,7.22678571]
[1724604951785,9.70539088,159.02,158.91,9.70539088]
[1724604952084,45.0,159.01,158.91,9.70539088]
[1724604952482,16.0568,158.99,158.88,9.72539736]
[1724604952796,16.0568,158.99,158.89,9.70539088]
[1724604952973,16.0568,158.99,158.91,9.70539088]
[1724604953177,16.0568,158.99,158.93,9.70539088]
[1724604953997,6.3177,159.0,158.95,9.70539088]
[1724604956271,6.3177,159.0,158.89,11.60076631]
[1724604956574,6.3177,159.0,158.93,9.70539088]
[1724604957170,6.3177,159.0,158.95,9.70539088]